﻿Department,Entity,Date of Payment,Expense Type,Expense Area,Supplier,Transaction Number,Amount,Description,Supplier Post Code,Supplier Type
"Department for Business, Innovation and Skills",UK Space Agency,22/02/2022,R & D Other Goods/Services,UKSA - UKSA,DSTL (Defence Science and Technology Laboratory),397892,15000.00,,,VENDOR
"Department for Business, Innovation and Skills",UK Space Agency,22/02/2022,R & D Other Goods/Services,UKSA - UKSA,DSTL (Defence Science and Technology Laboratory),397894,19966.24,,,VENDOR
"Department for Business, Innovation and Skills",UK Space Agency,16/02/2022,R & D Other Professional Services,UK Space Agency - UK Space Agency,Dods Group Ltd,407915,-60.00,,,VENDOR
"Department for Business, Innovation and Skills",UK Space Agency,07/02/2022,R & D Rentals Under Non-PFI Operating Leases - Buildings,UK Space Agency - UK Space Agency,Satellite Applications Catapult Ltd,413703,9391.14,,,VENDOR
"Department for Business, Innovation and Skills",UK Space Agency,23/02/2022,R & D Other Professional Services,UKSA - UKSA,BAE Systems Applied Intelligence Limited,417342,11612.40,,,VENDOR
"Department for Business, Innovation and Skills",UK Space Agency,23/02/2022,R & D Other Professional Services,UKSA - UKSA,BAE Systems Applied Intelligence Limited,417342,11923.20,,,VENDOR
"Department for Business, Innovation and Skills",UK Space Agency,23/02/2022,R & D Other Professional Services,UKSA - UKSA,BAE Systems Applied Intelligence Limited,417342,12234.00,,,VENDOR
"Department for Business, Innovation and Skills",UK Space Agency,23/02/2022,R & D Other Professional Services,UKSA - UKSA,BAE Systems Applied Intelligence Limited,417342,13743.60,,,VENDOR
"Department for Business, Innovation and Skills",UK Space Agency,23/02/2022,R & D Other Professional Services,UKSA - UKSA,BAE Systems Applied Intelligence Limited,417342,18774.60,,,VENDOR
"Department for Business, Innovation and Skills",UK Space Agency,28/02/2022,R & D Financial Advice and Services,UK Space Agency - UK Space Agency,HM Treasury,418478,4618.75,,,WGA ONLY
"Department for Business, Innovation and Skills",UK Space Agency,15/02/2022,R & D Contractors,UK Space Agency - UK Space Agency,Robertson Bell Ltd,419459,2452.66,,,VENDOR
"Department for Business, Innovation and Skills",UK Space Agency,15/02/2022,R & D Contractors,UKSA - UKSA,Robertson Bell Ltd,419461,1551.34,,,VENDOR
"Department for Business, Innovation and Skills",UK Space Agency,15/02/2022,R & D Contractors,UK Space Agency - UK Space Agency,Robertson Bell Ltd,420623,1226.33,,,VENDOR
"Department for Business, Innovation and Skills",UK Space Agency,15/02/2022,R & D Contractors,UKSA - UKSA,Robertson Bell Ltd,420626,775.67,,,VENDOR
"Department for Business, Innovation and Skills",UK Space Agency,07/02/2022,R & D Contractors,UKSA - UKSA,Alexander Mann Solutions Ltd,421265,1984.49,,,VENDOR
"Department for Business, Innovation and Skills",UK Space Agency,07/02/2022,R & D Contractors,UKSA - UKSA,Alexander Mann Solutions Ltd,421265,10583.90,,,VENDOR
"Department for Business, Innovation and Skills",UK Space Agency,15/02/2022,R & D Contractors,UKSA - UKSA,Robertson Bell Ltd,421530,775.67,,,VENDOR
"Department for Business, Innovation and Skills",UK Space Agency,15/02/2022,R & D Contractors,UK Space Agency - UK Space Agency,Robertson Bell Ltd,421533,1226.33,,,VENDOR
"Department for Business, Innovation and Skills",UK Space Agency,15/02/2022,R & D Contractors,UK Space Agency - UK Space Agency,Robertson Bell Ltd,422694,1706.92,,,VENDOR
"Department for Business, Innovation and Skills",UK Space Agency,15/02/2022,R & D Contractors,UKSA - UKSA,Robertson Bell Ltd,422695,775.67,,,VENDOR
"Department for Business, Innovation and Skills",UK Space Agency,02/02/2022,R & D Other Professional Services,UKSA - UKSA,BAE Systems Applied Intelligence Limited,423943,89174.52,,,VENDOR
"Department for Business, Innovation and Skills",UK Space Agency,10/02/2022,R & D Other Professional Services,UK Space Agency - UK Space Agency,AIRBUS DEFENCE AND SPACE LTD,424274,41007.60,,,VENDOR
"Department for Business, Innovation and Skills",UK Space Agency,17/02/2022,R & D Contractors,UKSA - UKSA,Alexander Mann Solutions Ltd,424796,5291.95,,,VENDOR
"Department for Business, Innovation and Skills",UK Space Agency,16/02/2022,R & D Contractors,UK Space Agency - UK Space Agency,Alexander Mann Solutions Ltd,425662,3387.66,,,VENDOR
"Department for Business, Innovation and Skills",UK Space Agency,28/02/2022,R & D Contractors,UKSA - UKSA,Alexander Mann Solutions Ltd,425686,59089.46,,,VENDOR
"Department for Business, Innovation and Skills",UK Space Agency,23/02/2022,R & D Contractors,UK Space Agency - UK Space Agency,Alexander Mann Solutions Ltd,425687,8094.48,,,VENDOR
"Department for Business, Innovation and Skills",UK Space Agency,14/02/2022,R & D Other Professional Services,UK Space Agency - UK Space Agency,UKRI - Natural Environment Research Council,425840,5797.70,,,WGA ONLY
"Department for Business, Innovation and Skills",UK Space Agency,02/02/2022,R & D Current Grants to Private Sector - NPISH,UK Space Agency - UK Space Agency,United Nations Institute for Training and Research (UNITAR),426409,192993.00,,,GRANT
"Department for Business, Innovation and Skills",UK Space Agency,03/02/2022,R & D Media and Design Services,UK Space Agency - UK Space Agency,Numerica Corporation,426459,21225.32,,,VENDOR
"Department for Business, Innovation and Skills",UK Space Agency,01/02/2022,R & D Other Professional Services,UK Space Agency - UK Space Agency,Know.Consulting Ltd T/A Know.Space,426536,51393.60,,,VENDOR
"Department for Business, Innovation and Skills",UK Space Agency,01/02/2022,R & D Other Travel,UKSA - UKSA,"Personal Expense, Name Withheld",426644,10.00,,,EMPLOYEE
"Department for Business, Innovation and Skills",UK Space Agency,02/02/2022,R & D Current Grants to Private Sector - NPISH,UK Space Agency - UK Space Agency,MAC SciTech Ltd,426691,4092.04,,,VENDOR
"Department for Business, Innovation and Skills",UK Space Agency,02/02/2022,Capital Grants To Private Sector - Persons & NPISH,UK Space Agency - UK Space Agency,UK Launch Services Ltd,426716,23762.00,,,VENDOR
"Department for Business, Innovation and Skills",UK Space Agency,02/02/2022,R & D Other Professional Services,UK Space Agency - UK Space Agency,Aerospace Corporation UK Ltd,426721,28584.01,,,VENDOR
"Department for Business, Innovation and Skills",UK Space Agency,09/02/2022,R & D Training and Development Expenditure,UKSA - UKSA,KPMG LLP,426737,1634.00,,,VENDOR
"Department for Business, Innovation and Skills",UK Space Agency,09/02/2022,R & D Other Goods/Services,UKSA - UKSA,KPMG LLP,426739,2531.00,,,VENDOR
"Department for Business, Innovation and Skills",UK Space Agency,02/02/2022,R & D Other Professional Services,UK Space Agency - UK Space Agency,Entrepreneurial-Spark Ltd,426850,360.00,,,VENDOR
"Department for Business, Innovation and Skills",UK Space Agency,02/02/2022,R & D Other Professional Services,UK Space Agency - UK Space Agency,Entrepreneurial-Spark Ltd,426850,1260.00,,,VENDOR
"Department for Business, Innovation and Skills",UK Space Agency,02/02/2022,R & D Other Professional Services,UK Space Agency - UK Space Agency,Entrepreneurial-Spark Ltd,426850,2070.00,,,VENDOR
"Department for Business, Innovation and Skills",UK Space Agency,02/02/2022,R & D Other Professional Services,UK Space Agency - UK Space Agency,Entrepreneurial-Spark Ltd,426850,2430.00,,,VENDOR
"Department for Business, Innovation and Skills",UK Space Agency,02/02/2022,R & D Other Professional Services,UK Space Agency - UK Space Agency,Entrepreneurial-Spark Ltd,426850,6150.00,,,VENDOR
"Department for Business, Innovation and Skills",UK Space Agency,02/02/2022,R & D Other Travel,UK Space Agency - UK Space Agency,"Personal Expense, Name Withheld",426887,46.49,,,EMPLOYEE
"Department for Business, Innovation and Skills",UK Space Agency,02/02/2022,R & D Other Travel,UKSA - UKSA,"Personal Expense, Name Withheld",426889,167.99,,,EMPLOYEE
"Department for Business, Innovation and Skills",UK Space Agency,02/02/2022,R & D Current Grants to Private Sector - NPISH,UKSA - UKSA,UNIVERSITY OF PORTSMOUTH,426932,2760.75,,,VENDOR
"Department for Business, Innovation and Skills",UK Space Agency,02/02/2022,R & D Other Professional Services,UK Space Agency - UK Space Agency,Entrepreneurial-Spark Ltd,426935,1200.00,,,VENDOR
"Department for Business, Innovation and Skills",UK Space Agency,02/02/2022,R & D Other Professional Services,UK Space Agency - UK Space Agency,Entrepreneurial-Spark Ltd,426935,1885.72,,,VENDOR
"Department for Business, Innovation and Skills",UK Space Agency,02/02/2022,R & D Other Professional Services,UK Space Agency - UK Space Agency,Entrepreneurial-Spark Ltd,426935,2400.00,,,VENDOR
"Department for Business, Innovation and Skills",UK Space Agency,02/02/2022,R & D Other Professional Services,UK Space Agency - UK Space Agency,Entrepreneurial-Spark Ltd,426935,7371.43,,,VENDOR
"Department for Business, Innovation and Skills",UK Space Agency,02/02/2022,R & D Media and Design Services,UK Space Agency - UK Space Agency,AstroAgency Ltd,426936,1155.00,,,GRANT
"Department for Business, Innovation and Skills",UK Space Agency,02/02/2022,R & D Media and Design Services,UK Space Agency - UK Space Agency,AstroAgency Ltd,426936,5630.00,,,GRANT
"Department for Business, Innovation and Skills",UK Space Agency,02/02/2022,R & D Contractors,UK Space Agency - UK Space Agency,Alexander Mann Solutions Ltd,426949,1326.96,,,VENDOR
"Department for Business, Innovation and Skills",UK Space Agency,02/02/2022,R & D Contractors,UK Space Agency - UK Space Agency,Alexander Mann Solutions Ltd,426950,2985.66,,,VENDOR
"Department for Business, Innovation and Skills",UK Space Agency,02/02/2022,R & D Contractors,UK Space Agency - UK Space Agency,Alexander Mann Solutions Ltd,426952,2293.42,,,VENDOR
"Department for Business, Innovation and Skills",UK Space Agency,02/02/2022,R & D Contractors,UK Space Agency - UK Space Agency,Alexander Mann Solutions Ltd,426953,2710.13,,,VENDOR
"Department for Business, Innovation and Skills",UK Space Agency,02/02/2022,R & D Contractors,UK Space Agency - UK Space Agency,Alexander Mann Solutions Ltd,426955,5292.43,,,VENDOR
"Department for Business, Innovation and Skills",UK Space Agency,03/02/2022,R & D Contractors,UKSA - UKSA,Alexander Mann Solutions Ltd,426959,6614.94,,,VENDOR
"Department for Business, Innovation and Skills",UK Space Agency,03/02/2022,R & D Contractors,UK Space Agency - UK Space Agency,Alexander Mann Solutions Ltd,426960,2520.24,,,VENDOR
"Department for Business, Innovation and Skills",UK Space Agency,03/02/2022,R & D Contractors,UK Space Agency - UK Space Agency,Alexander Mann Solutions Ltd,426962,4927.44,,,VENDOR
"Department for Business, Innovation and Skills",UK Space Agency,03/02/2022,R & D Contractors,UK Space Agency - UK Space Agency,Alexander Mann Solutions Ltd,426964,3307.20,,,VENDOR
"Department for Business, Innovation and Skills",UK Space Agency,16/02/2022,R & D Contractors,UKSA - UKSA,Alexander Mann Solutions Ltd,426965,27.60,,,VENDOR
"Department for Business, Innovation and Skills",UK Space Agency,16/02/2022,R & D Contractors,UKSA - UKSA,Alexander Mann Solutions Ltd,426965,1391.32,,,VENDOR
"Department for Business, Innovation and Skills",UK Space Agency,28/02/2022,R & D Contractors,UKSA - UKSA,Alexander Mann Solutions Ltd,426967,3362.82,,,VENDOR
"Department for Business, Innovation and Skills",UK Space Agency,03/02/2022,R & D Contractors,UK Space Agency - UK Space Agency,Alexander Mann Solutions Ltd,426968,2835.24,,,VENDOR
"Department for Business, Innovation and Skills",UK Space Agency,03/02/2022,R & D Contractors,UKSA - UKSA,Alexander Mann Solutions Ltd,426969,5545.50,,,VENDOR
"Department for Business, Innovation and Skills",UK Space Agency,23/02/2022,R & D Contractors,UK Space Agency - UK Space Agency,Alexander Mann Solutions Ltd,426970,5666.14,,,VENDOR
"Department for Business, Innovation and Skills",UK Space Agency,03/02/2022,R & D Contractors,UKSA - UKSA,Alexander Mann Solutions Ltd,426972,2520.24,,,VENDOR
"Department for Business, Innovation and Skills",UK Space Agency,03/02/2022,R & D International Subscriptions,UK Space Agency - UK Space Agency,EUROPEAN SPACE AGENCY,426990,131488300.89,,,VENDOR
"Department for Business, Innovation and Skills",UK Space Agency,03/02/2022,R & D Current Grants to Private Sector - NPISH,UK Space Agency - UK Space Agency,UKRI - Science and Technology Facilities Council,427086,87175.77,,,WGA ONLY
"Department for Business, Innovation and Skills",UK Space Agency,03/02/2022,R & D Current Grants to Private Sector - NPISH,UK Space Agency - UK Space Agency,University Of Cambridge,427321,23719.73,,,VENDOR
"Department for Business, Innovation and Skills",UK Space Agency,04/02/2022,R & D Other Goods/Services,UK Space Agency - UK Space Agency,ACT NOW TRAINING LTD,427357,478.80,,,VENDOR
"Department for Business, Innovation and Skills",UK Space Agency,04/02/2022,R & D Other Goods/Services,UK Space Agency - UK Space Agency,ACT NOW TRAINING LTD,427358,478.80,,,VENDOR
"Department for Business, Innovation and Skills",UK Space Agency,04/02/2022,R & D Other Professional Services,UK Space Agency - UK Space Agency,Hopscotch Consulting Ltd,427359,20384.40,,,VENDOR
"Department for Business, Innovation and Skills",UK Space Agency,04/02/2022,R & D Other Travel,UKSA - UKSA,"Personal Expense, Name Withheld",427409,247.32,,,EMPLOYEE
"Department for Business, Innovation and Skills",UK Space Agency,04/02/2022,R & D Subsistence UK,UK Space Agency - UK Space Agency,"Personal Expense, Name Withheld",427410,12.75,,,EMPLOYEE
"Department for Business, Innovation and Skills",UK Space Agency,14/02/2022,R & D Other Goods/Services,UK Space Agency - UK Space Agency,"Amazon EU SARL, UK Branch",427444,17.40,,,VENDOR
"Department for Business, Innovation and Skills",UK Space Agency,04/02/2022,Rail Travel UK,UKSA - UKSA,"Personal Expense, Name Withheld",427471,70.00,,,
"Department for Business, Innovation and Skills",UK Space Agency,04/02/2022,R & D Contractors,UKSA - UKSA,Robertson Bell Ltd,427510,1306.37,,,VENDOR
"Department for Business, Innovation and Skills",UK Space Agency,11/02/2022,R & D Contractors,UKSA - UKSA,Robertson Bell Ltd,427511,1551.34,,,VENDOR
"Department for Business, Innovation and Skills",UK Space Agency,15/02/2022,R & D Contractors,UK Space Agency - UK Space Agency,Robertson Bell Ltd,427513,2452.66,,,VENDOR
"Department for Business, Innovation and Skills",UK Space Agency,04/02/2022,R & D Mileage Allowance UK,UK Space Agency - UK Space Agency,"Personal Expense, Name Withheld",427528,1.17,,,EMPLOYEE
"Department for Business, Innovation and Skills",UK Space Agency,04/02/2022,R & D Mileage Allowance UK,UK Space Agency - UK Space Agency,"Personal Expense, Name Withheld",427528,1.17,,,EMPLOYEE
"Department for Business, Innovation and Skills",UK Space Agency,04/02/2022,R & D Mileage Allowance UK,UK Space Agency - UK Space Agency,"Personal Expense, Name Withheld",427528,58.95,,,EMPLOYEE
"Department for Business, Innovation and Skills",UK Space Agency,04/02/2022,R & D Mileage Allowance UK,UK Space Agency - UK Space Agency,"Personal Expense, Name Withheld",427528,58.95,,,EMPLOYEE
"Department for Business, Innovation and Skills",UK Space Agency,11/02/2022,R & D Other Goods/Services,UKSA - UKSA,INTERNATIONAL ASTRONAUTICAL FEDERATION,427581,1834.80,,,GRANT
"Department for Business, Innovation and Skills",UK Space Agency,07/02/2022,R & D Current Grants to Private Sector - NPISH,UK Space Agency - UK Space Agency,Robert Hill T/A Northern Ireland Space Office,427583,6150.00,,,GRANT
"Department for Business, Innovation and Skills",UK Space Agency,07/02/2022,R & D External Training,UKSA - UKSA,CAPITA BUSINESS SERVICES LTD T/A KNOWLEDGEPOOL,427640,6270.83,,,VENDOR
"Department for Business, Innovation and Skills",UK Space Agency,07/02/2022,R & D External Training,UKSA - UKSA,CAPITA BUSINESS SERVICES LTD T/A KNOWLEDGEPOOL,427641,3979.17,,,VENDOR
"Department for Business, Innovation and Skills",UK Space Agency,07/02/2022,R & D External Training,UKSA - UKSA,CAPITA BUSINESS SERVICES LTD T/A KNOWLEDGEPOOL,427642,6270.83,,,VENDOR
"Department for Business, Innovation and Skills",UK Space Agency,07/02/2022,R & D External Training,UKSA - UKSA,CAPITA BUSINESS SERVICES LTD T/A KNOWLEDGEPOOL,427643,34687.50,,,VENDOR
"Department for Business, Innovation and Skills",UK Space Agency,07/02/2022,R & D Other Professional Services,UK Space Agency - UK Space Agency,Royal Geographical Society (With The Institute Of British Geographers),427649,115.00,,,VENDOR
"Department for Business, Innovation and Skills",UK Space Agency,07/02/2022,R & D Subsistence UK,UK Space Agency - UK Space Agency,"Personal Expense, Name Withheld",427688,15.00,,,EMPLOYEE
"Department for Business, Innovation and Skills",UK Space Agency,07/02/2022,R & D Rail Travel UK,UK Space Agency - UK Space Agency,"Personal Expense, Name Withheld",427688,56.90,,,EMPLOYEE
"Department for Business, Innovation and Skills",UK Space Agency,07/02/2022,R & D Subsistence UK,UKSA - UKSA,"Personal Expense, Name Withheld",427689,13.65,,,EMPLOYEE
"Department for Business, Innovation and Skills",UK Space Agency,07/02/2022,R & D Mileage Allowance UK,UKSA - UKSA,"Personal Expense, Name Withheld",427690,63.00,,,EMPLOYEE
"Department for Business, Innovation and Skills",UK Space Agency,07/02/2022,R & D Current Grants to Private Sector - NPISH,UK Space Agency - UK Space Agency,REMOTE SENSING APPLICATIONS CONSULTANTS LTD,427712,37011.89,,,VENDOR
"Department for Business, Innovation and Skills",UK Space Agency,08/02/2022,R & D Other Staff Welfare Costs,UKSA - UKSA,People Asset Management Ltd,427896,205.50,,,VENDOR
"Department for Business, Innovation and Skills",UK Space Agency,08/02/2022,R & D Other Staff Welfare Costs,UKSA - UKSA,People Asset Management Ltd,427906,155.95,,,VENDOR
"Department for Business, Innovation and Skills",UK Space Agency,08/02/2022,R & D Other Staff Welfare Costs,UKSA - UKSA,People Asset Management Ltd,427912,121.20,,,VENDOR
"Department for Business, Innovation and Skills",UK Space Agency,08/02/2022,R & D Other Goods/Services,UK Space Agency - UK Space Agency,Event Connections Ltd,428084,1148.70,,,VENDOR
"Department for Business, Innovation and Skills",UK Space Agency,08/02/2022,R & D Other Travel,UKSA - UKSA,"Personal Expense, Name Withheld",428199,200.00,,,EMPLOYEE
"Department for Business, Innovation and Skills",UK Space Agency,08/02/2022,R & D Other Travel,UK Space Agency - UK Space Agency,"Personal Expense, Name Withheld",428200,8.99,,,EMPLOYEE
"Department for Business, Innovation and Skills",UK Space Agency,08/02/2022,R & D Other Travel,UK Space Agency - UK Space Agency,"Personal Expense, Name Withheld",428200,23.99,,,EMPLOYEE
"Department for Business, Innovation and Skills",UK Space Agency,08/02/2022,R & D Other Travel,UKSA - UKSA,"Personal Expense, Name Withheld",428202,50.00,,,EMPLOYEE
"Department for Business, Innovation and Skills",UK Space Agency,08/02/2022,R & D Contractors,UK Space Agency - UK Space Agency,Alexander Mann Solutions Ltd,428239,2985.66,,,VENDOR
"Department for Business, Innovation and Skills",UK Space Agency,08/02/2022,R & D Contractors,UK Space Agency - UK Space Agency,Alexander Mann Solutions Ltd,428240,2948.68,,,VENDOR
"Department for Business, Innovation and Skills",UK Space Agency,08/02/2022,R & D Contractors,UK Space Agency - UK Space Agency,Alexander Mann Solutions Ltd,428241,2710.13,,,VENDOR
"Department for Business, Innovation and Skills",UK Space Agency,08/02/2022,R & D Contractors,UK Space Agency - UK Space Agency,Alexander Mann Solutions Ltd,428243,2205.18,,,VENDOR
"Department for Business, Innovation and Skills",UK Space Agency,08/02/2022,R & D Contractors,UKSA - UKSA,Alexander Mann Solutions Ltd,428244,6614.94,,,VENDOR
"Department for Business, Innovation and Skills",UK Space Agency,08/02/2022,R & D Contractors,UK Space Agency - UK Space Agency,Alexander Mann Solutions Ltd,428245,2520.24,,,VENDOR
"Department for Business, Innovation and Skills",UK Space Agency,08/02/2022,R & D Contractors,UK Space Agency - UK Space Agency,Alexander Mann Solutions Ltd,428246,4927.44,,,VENDOR
"Department for Business, Innovation and Skills",UK Space Agency,08/02/2022,R & D Contractors,UK Space Agency - UK Space Agency,Alexander Mann Solutions Ltd,428247,3307.20,,,VENDOR
"Department for Business, Innovation and Skills",UK Space Agency,16/02/2022,R & D Contractors,UKSA - UKSA,Alexander Mann Solutions Ltd,428248,687.52,,,VENDOR
"Department for Business, Innovation and Skills",UK Space Agency,28/02/2022,R & D Contractors,UKSA - UKSA,Alexander Mann Solutions Ltd,428249,4323.62,,,VENDOR
"Department for Business, Innovation and Skills",UK Space Agency,08/02/2022,R & D Contractors,UK Space Agency - UK Space Agency,Alexander Mann Solutions Ltd,428250,2835.24,,,VENDOR
"Department for Business, Innovation and Skills",UK Space Agency,08/02/2022,R & D Contractors,UKSA - UKSA,Alexander Mann Solutions Ltd,428251,10536.46,,,VENDOR
"Department for Business, Innovation and Skills",UK Space Agency,08/02/2022,R & D Other Professional Services,UK Space Agency - UK Space Agency,Alexander Mann Solutions Ltd,428253,831.67,,,VENDOR
"Department for Business, Innovation and Skills",UK Space Agency,09/02/2022,R & D Current Grants to Overseas Bodies,UK Space Agency - UK Space Agency,United Nations Office for Outer Space Affairs (UNOOSA),428337,23740.00,,,GRANT
"Department for Business, Innovation and Skills",UK Space Agency,09/02/2022,R & D Other Professional Services,UK Space Agency - UK Space Agency,Ordinal Space Ltd,428397,5204.56,,,VENDOR
"Department for Business, Innovation and Skills",UK Space Agency,25/02/2022,R & D Other Professional Services,UK Space Agency - UK Space Agency,Fordway Solutions Ltd,428411,4174.08,,,VENDOR
"Department for Business, Innovation and Skills",UK Space Agency,09/02/2022,R & D Subsistence UK,UK Space Agency - UK Space Agency,"Personal Expense, Name Withheld",428465,13.45,,,EMPLOYEE
"Department for Business, Innovation and Skills",UK Space Agency,09/02/2022,R & D Other Travel,UK Space Agency - UK Space Agency,"Personal Expense, Name Withheld",428466,5.00,,,EMPLOYEE
"Department for Business, Innovation and Skills",UK Space Agency,09/02/2022,R & D Subsistence UK,UK Space Agency - UK Space Agency,"Personal Expense, Name Withheld",428467,7.99,,,EMPLOYEE
"Department for Business, Innovation and Skills",UK Space Agency,09/02/2022,R & D Subsistence Overseas,UK Space Agency - UK Space Agency,"Personal Expense, Name Withheld",428470,10.57,,,EMPLOYEE
"Department for Business, Innovation and Skills",UK Space Agency,09/02/2022,R & D Subsistence Overseas,UK Space Agency - UK Space Agency,"Personal Expense, Name Withheld",428471,2.52,,,EMPLOYEE
"Department for Business, Innovation and Skills",UK Space Agency,09/02/2022,R & D Subsistence Overseas,UK Space Agency - UK Space Agency,"Personal Expense, Name Withheld",428472,3.19,,,EMPLOYEE
"Department for Business, Innovation and Skills",UK Space Agency,09/02/2022,R & D Taxi Services UK,UK Space Agency - UK Space Agency,"Personal Expense, Name Withheld",428473,31.00,,,EMPLOYEE
"Department for Business, Innovation and Skills",UK Space Agency,09/02/2022,R & D Hotel & Accommodation Overseas,UK Space Agency - UK Space Agency,"Personal Expense, Name Withheld",428474,311.89,,,EMPLOYEE
"Department for Business, Innovation and Skills",UK Space Agency,09/02/2022,R & D Taxi Services UK,UK Space Agency - UK Space Agency,"Personal Expense, Name Withheld",428475,35.00,,,EMPLOYEE
"Department for Business, Innovation and Skills",UK Space Agency,09/02/2022,R & D Taxi Services Overseas,UK Space Agency - UK Space Agency,"Personal Expense, Name Withheld",428476,42.68,,,EMPLOYEE
"Department for Business, Innovation and Skills",UK Space Agency,09/02/2022,R & D Other Travel,UK Space Agency - UK Space Agency,"Personal Expense, Name Withheld",428477,44.00,,,EMPLOYEE
"Department for Business, Innovation and Skills",UK Space Agency,09/02/2022,R & D Other Travel,UK Space Agency - UK Space Agency,"Personal Expense, Name Withheld",428478,5.39,,,EMPLOYEE
"Department for Business, Innovation and Skills",UK Space Agency,09/02/2022,R & D Subsistence UK,UK Space Agency - UK Space Agency,"Personal Expense, Name Withheld",428479,5.94,,,EMPLOYEE
"Department for Business, Innovation and Skills",UK Space Agency,09/02/2022,R & D Subsistence Overseas,UK Space Agency - UK Space Agency,"Personal Expense, Name Withheld",428480,9.46,,,EMPLOYEE
"Department for Business, Innovation and Skills",UK Space Agency,09/02/2022,R & D Other Professional Services,UK Space Agency - UK Space Agency,CGI IT UK LTD,428526,9816.00,,,VENDOR
"Department for Business, Innovation and Skills",UK Space Agency,09/02/2022,R & D Current Grants to Private Sector - NPISH,UK Space Agency - UK Space Agency,Satellite Applications Catapult Ltd,428539,52806.03,,,VENDOR
"Department for Business, Innovation and Skills",UK Space Agency,10/02/2022,Capital Grants To Private Sector - Persons & NPISH,UK Space Agency - UK Space Agency,TwinParadox Ltd,428561,12773.43,,,GRANT
"Department for Business, Innovation and Skills",UK Space Agency,21/02/2022,R & D Travel Booking,UK Space Agency - UK Space Agency,Corporate Travel Management (North) Ltd,428591,10.08,,,VENDOR
"Department for Business, Innovation and Skills",UK Space Agency,21/02/2022,R & D Travel Booking,UK Space Agency - UK Space Agency,Corporate Travel Management (North) Ltd,428591,14.88,,,VENDOR
"Department for Business, Innovation and Skills",UK Space Agency,21/02/2022,R & D Air Travel,UK Space Agency - UK Space Agency,Corporate Travel Management (North) Ltd,428591,24.00,,,VENDOR
"Department for Business, Innovation and Skills",UK Space Agency,21/02/2022,R & D Rail Travel UK,UK Space Agency - UK Space Agency,Corporate Travel Management (North) Ltd,428591,58.20,,,VENDOR
"Department for Business, Innovation and Skills",UK Space Agency,21/02/2022,R & D Hotel & Accommodation UK,UK Space Agency - UK Space Agency,Corporate Travel Management (North) Ltd,428591,2021.50,,,VENDOR
"Department for Business, Innovation and Skills",UK Space Agency,21/02/2022,R & D Air Travel,UK Space Agency - UK Space Agency,Corporate Travel Management (North) Ltd,428591,2552.20,,,VENDOR
"Department for Business, Innovation and Skills",UK Space Agency,21/02/2022,R & D Rail Travel UK,UK Space Agency - UK Space Agency,Corporate Travel Management (North) Ltd,428591,2791.40,,,VENDOR
"Department for Business, Innovation and Skills",UK Space Agency,23/02/2022,R & D Contractors,UKSA - UKSA,Methods Business and Digital Technology Ltd,428596,23431.20,,,VENDOR
"Department for Business, Innovation and Skills",UK Space Agency,23/02/2022,R & D Contractors,UKSA - UKSA,Methods Business and Digital Technology Ltd,428602,486.16,,,VENDOR
"Department for Business, Innovation and Skills",UK Space Agency,10/02/2022,R & D Other Travel,UK Space Agency - UK Space Agency,"Personal Expense, Name Withheld",428661,8.98,,,EMPLOYEE
"Department for Business, Innovation and Skills",UK Space Agency,10/02/2022,R & D Other Travel,UK Space Agency - UK Space Agency,"Personal Expense, Name Withheld",428662,75.99,,,EMPLOYEE
"Department for Business, Innovation and Skills",UK Space Agency,10/02/2022,R & D Mileage Allowance UK,UK Space Agency - UK Space Agency,"Personal Expense, Name Withheld",428663,54.00,,,EMPLOYEE
"Department for Business, Innovation and Skills",UK Space Agency,10/02/2022,R & D Mileage Allowance UK,UK Space Agency - UK Space Agency,"Personal Expense, Name Withheld",428663,64.80,,,EMPLOYEE
"Department for Business, Innovation and Skills",UK Space Agency,10/02/2022,R & D Other Travel,UK Space Agency - UK Space Agency,"Personal Expense, Name Withheld",428664,152.99,,,EMPLOYEE
"Department for Business, Innovation and Skills",UK Space Agency,15/02/2022,R & D Other Professional Services,UK Space Agency - UK Space Agency,LONDON ECONOMICS LTD,428723,41992.20,,,VENDOR
"Department for Business, Innovation and Skills",UK Space Agency,11/02/2022,R & D Current Grants to Private Sector - NPISH,UK Space Agency - UK Space Agency,Global Satellite Vu Ltd,428775,387590.47,,,GRANT
"Department for Business, Innovation and Skills",UK Space Agency,15/02/2022,R & D Contractors,UKSA - UKSA,Robertson Bell Ltd,428776,1306.37,,,VENDOR
"Department for Business, Innovation and Skills",UK Space Agency,11/02/2022,R & D Other Professional Services,UKSA - UKSA,Maximillion Events Ltd,428791,4917.60,,,VENDOR
"Department for Business, Innovation and Skills",UK Space Agency,11/02/2022,R & D Other Goods/Services,UKSA - UKSA,KPMG LLP,428805,626.00,,,VENDOR
"Department for Business, Innovation and Skills",UK Space Agency,11/02/2022,R & D Other Professional Services,UK Space Agency - UK Space Agency,Aerospace Corporation UK Ltd,428809,3019.07,,,VENDOR
"Department for Business, Innovation and Skills",UK Space Agency,11/02/2022,R & D Other Travel,UK Space Agency - UK Space Agency,"Personal Expense, Name Withheld",428835,4.10,,,EMPLOYEE
"Department for Business, Innovation and Skills",UK Space Agency,11/02/2022,R & D Other Travel,UK Space Agency - UK Space Agency,"Personal Expense, Name Withheld",428835,4.70,,,EMPLOYEE
"Department for Business, Innovation and Skills",UK Space Agency,11/02/2022,R & D Other Travel,UK Space Agency - UK Space Agency,"Personal Expense, Name Withheld",428835,5.90,,,EMPLOYEE
"Department for Business, Innovation and Skills",UK Space Agency,11/02/2022,R & D Other Travel,UK Space Agency - UK Space Agency,"Personal Expense, Name Withheld",428835,6.49,,,EMPLOYEE
"Department for Business, Innovation and Skills",UK Space Agency,11/02/2022,R & D Subsistence UK,UK Space Agency - UK Space Agency,"Personal Expense, Name Withheld",428835,9.98,,,EMPLOYEE
"Department for Business, Innovation and Skills",UK Space Agency,11/02/2022,R & D Subsistence UK,UK Space Agency - UK Space Agency,"Personal Expense, Name Withheld",428835,12.99,,,EMPLOYEE
"Department for Business, Innovation and Skills",UK Space Agency,11/02/2022,R & D Subsistence UK,UK Space Agency - UK Space Agency,"Personal Expense, Name Withheld",428835,14.70,,,EMPLOYEE
"Department for Business, Innovation and Skills",UK Space Agency,11/02/2022,R & D Subsistence UK,UK Space Agency - UK Space Agency,"Personal Expense, Name Withheld",428835,15.00,,,EMPLOYEE
"Department for Business, Innovation and Skills",UK Space Agency,11/02/2022,R & D Subsistence UK,UK Space Agency - UK Space Agency,"Personal Expense, Name Withheld",428836,5.00,,,EMPLOYEE
"Department for Business, Innovation and Skills",UK Space Agency,11/02/2022,R & D Subsistence UK,UK Space Agency - UK Space Agency,"Personal Expense, Name Withheld",428836,15.00,,,EMPLOYEE
"Department for Business, Innovation and Skills",UK Space Agency,14/02/2022,R & D Current Grants to Private Sector - NPISH,UK Space Agency - UK Space Agency,West of England Combined Authority,428949,4342.40,,,GRANT
"Department for Business, Innovation and Skills",UK Space Agency,14/02/2022,R & D Contractors,UK Space Agency - UK Space Agency,Robertson Bell Ltd,428953,1226.33,,,VENDOR
"Department for Business, Innovation and Skills",UK Space Agency,14/02/2022,CL - Intercompany Payables,UK Space Agency - UK Space Agency,"Department for Business, Energy and Industrial Strategy",428977,4222.73,,,VENDOR
"Department for Business, Innovation and Skills",UK Space Agency,15/02/2022,R & D Other Travel,UKSA - UKSA,"Personal Expense, Name Withheld",429022,12.99,,,EMPLOYEE
"Department for Business, Innovation and Skills",UK Space Agency,15/02/2022,R & D Other Travel,UKSA - UKSA,"Personal Expense, Name Withheld",429022,22.97,,,EMPLOYEE
"Department for Business, Innovation and Skills",UK Space Agency,15/02/2022,R & D Other Travel,UKSA - UKSA,"Personal Expense, Name Withheld",429022,115.00,,,EMPLOYEE
"Department for Business, Innovation and Skills",UK Space Agency,15/02/2022,R & D Other Travel,UKSA - UKSA,"Personal Expense, Name Withheld",429023,29.58,,,EMPLOYEE
"Department for Business, Innovation and Skills",UK Space Agency,14/02/2022,R & D Other Travel,UK Space Agency - UK Space Agency,"Personal Expense, Name Withheld",429034,2.00,,,EMPLOYEE
"Department for Business, Innovation and Skills",UK Space Agency,14/02/2022,R & D Other Travel,UK Space Agency - UK Space Agency,"Personal Expense, Name Withheld",429034,4.80,,,EMPLOYEE
"Department for Business, Innovation and Skills",UK Space Agency,14/02/2022,R & D Other Travel,UK Space Agency - UK Space Agency,"Personal Expense, Name Withheld",429034,5.00,,,EMPLOYEE
"Department for Business, Innovation and Skills",UK Space Agency,14/02/2022,R & D Current Grants to Private Sector - NPISH,UK Space Agency - UK Space Agency,The University of Nottingham,429047,53886.48,,,VENDOR
"Department for Business, Innovation and Skills",UK Space Agency,14/02/2022,R & D Current Grants to Private Sector - NPISH,UK Space Agency - UK Space Agency,The University of Nottingham,429048,23452.98,,,VENDOR
"Department for Business, Innovation and Skills",UK Space Agency,15/02/2022,R & D Contractors,UK Space Agency - UK Space Agency,Alexander Mann Solutions Ltd,429099,2985.66,,,VENDOR
"Department for Business, Innovation and Skills",UK Space Agency,15/02/2022,R & D Contractors,UK Space Agency - UK Space Agency,Alexander Mann Solutions Ltd,429101,3276.30,,,VENDOR
"Department for Business, Innovation and Skills",UK Space Agency,23/02/2022,R & D Contractors,UK Space Agency - UK Space Agency,Alexander Mann Solutions Ltd,429105,2710.13,,,VENDOR
"Department for Business, Innovation and Skills",UK Space Agency,15/02/2022,R & D Contractors,UK Space Agency - UK Space Agency,Alexander Mann Solutions Ltd,429109,2205.18,,,VENDOR
"Department for Business, Innovation and Skills",UK Space Agency,15/02/2022,R & D Contractors,UKSA - UKSA,Alexander Mann Solutions Ltd,429114,6614.94,,,VENDOR
"Department for Business, Innovation and Skills",UK Space Agency,15/02/2022,R & D Contractors,UKSA - UKSA,Alexander Mann Solutions Ltd,429148,17923.68,,,VENDOR
"Department for Business, Innovation and Skills",UK Space Agency,16/02/2022,R & D Contractors,UKSA - UKSA,Alexander Mann Solutions Ltd,429161,1184.87,,,VENDOR
"Department for Business, Innovation and Skills",UK Space Agency,15/02/2022,R & D Contractors,UK Space Agency - UK Space Agency,Alexander Mann Solutions Ltd,429167,2835.24,,,VENDOR
"Department for Business, Innovation and Skills",UK Space Agency,15/02/2022,R & D Contractors,UKSA - UKSA,Alexander Mann Solutions Ltd,429177,4436.40,,,VENDOR
"Department for Business, Innovation and Skills",UK Space Agency,15/02/2022,R & D Other Professional Services,UK Space Agency - UK Space Agency,Alexander Mann Solutions Ltd,429186,1247.51,,,VENDOR
"Department for Business, Innovation and Skills",UK Space Agency,15/02/2022,R & D Other Goods/Services,UK Space Agency - UK Space Agency,Independent Television News Ltd,429196,7800.00,,,VENDOR
"Department for Business, Innovation and Skills",UK Space Agency,15/02/2022,R & D Contractors,UK Space Agency - UK Space Agency,Robertson Bell Ltd,429225,1060.61,,,VENDOR
"Department for Business, Innovation and Skills",UK Space Agency,15/02/2022,R & D Contractors,UK Space Agency - UK Space Agency,Robertson Bell Ltd,429226,1226.33,,,VENDOR
"Department for Business, Innovation and Skills",UK Space Agency,15/02/2022,R & D Contractors,UKSA - UKSA,Robertson Bell Ltd,429228,775.67,,,VENDOR
"Department for Business, Innovation and Skills",UK Space Agency,15/02/2022,R & D Contractors,UKSA - UKSA,Robertson Bell Ltd,429229,665.60,,,VENDOR
"Department for Business, Innovation and Skills",UK Space Agency,15/02/2022,R & D Other Professional Services,UK Space Agency - UK Space Agency,INVERSE QUANTA LTD,429230,480.00,,,VENDOR
"Department for Business, Innovation and Skills",UK Space Agency,15/02/2022,R & D Other Travel,UK Space Agency - UK Space Agency,"Personal Expense, Name Withheld",429257,24.64,,,EMPLOYEE
"Department for Business, Innovation and Skills",UK Space Agency,15/02/2022,R & D Other Travel,UKSA - UKSA,"Personal Expense, Name Withheld",429258,2.40,,,EMPLOYEE
"Department for Business, Innovation and Skills",UK Space Agency,15/02/2022,R & D Other Travel,UKSA - UKSA,"Personal Expense, Name Withheld",429258,2.40,,,EMPLOYEE
"Department for Business, Innovation and Skills",UK Space Agency,15/02/2022,R & D Subsistence UK,UKSA - UKSA,"Personal Expense, Name Withheld",429258,5.30,,,EMPLOYEE
"Department for Business, Innovation and Skills",UK Space Agency,15/02/2022,R & D Subsistence UK,UKSA - UKSA,"Personal Expense, Name Withheld",429258,7.00,,,EMPLOYEE
"Department for Business, Innovation and Skills",UK Space Agency,15/02/2022,R & D Subsistence UK,UKSA - UKSA,"Personal Expense, Name Withheld",429258,14.45,,,EMPLOYEE
"Department for Business, Innovation and Skills",UK Space Agency,16/02/2022,R & D External Training,UKSA - UKSA,CIVIL SERVICE COLLEGE LTD,429306,595.00,,,VENDOR
"Department for Business, Innovation and Skills",UK Space Agency,16/02/2022,R & D External Training,UKSA - UKSA,CIVIL SERVICE COLLEGE LTD,429309,595.00,,,VENDOR
"Department for Business, Innovation and Skills",UK Space Agency,16/02/2022,R & D Other Professional Services,UK Space Agency - UK Space Agency,Northern Space and Security Ltd,429313,13200.00,,,VENDOR
"Department for Business, Innovation and Skills",UK Space Agency,16/02/2022,R & D External Training,UKSA - UKSA,Dods Group Ltd,429328,295.00,,,VENDOR
"Department for Business, Innovation and Skills",UK Space Agency,16/02/2022,R & D Other Goods/Services,UK Space Agency - UK Space Agency,EDINBURGH INTERNATIONAL CONFERENCE CENTRE LTD,429360,65.56,,,VENDOR
"Department for Business, Innovation and Skills",UK Space Agency,28/02/2022,R & D Current Grants to Private Sector - NPISH,UK Space Agency - UK Space Agency,Protolaunch Ltd,429363,60000.00,,,GRANT
"Department for Business, Innovation and Skills",UK Space Agency,25/02/2022,R & D Other Professional Services,UK Space Agency - UK Space Agency,RHEATECH LTD,429369,96293.08,,,GRANT
"Department for Business, Innovation and Skills",UK Space Agency,16/02/2022,R & D Taxi Services UK,UK Space Agency - UK Space Agency,"Personal Expense, Name Withheld",429437,10.00,,,EMPLOYEE
"Department for Business, Innovation and Skills",UK Space Agency,16/02/2022,R & D Subsistence UK,UK Space Agency - UK Space Agency,"Personal Expense, Name Withheld",429437,15.45,,,EMPLOYEE
"Department for Business, Innovation and Skills",UK Space Agency,16/02/2022,R & D Subsistence UK,UK Space Agency - UK Space Agency,"Personal Expense, Name Withheld",429438,7.99,,,EMPLOYEE
"Department for Business, Innovation and Skills",UK Space Agency,16/02/2022,R & D Subsistence UK,UK Space Agency - UK Space Agency,"Personal Expense, Name Withheld",429438,14.45,,,EMPLOYEE
"Department for Business, Innovation and Skills",UK Space Agency,24/02/2022,R & D Other Professional Services,UKSA - UKSA,CIVIL AVIATION AUTHORITY,429472,470163.12,,,VENDOR
"Department for Business, Innovation and Skills",UK Space Agency,17/02/2022,R & D Other Professional Services,UK Space Agency - UK Space Agency,Northern Space and Security Ltd,429524,13200.00,,,VENDOR
"Department for Business, Innovation and Skills",UK Space Agency,17/02/2022,Professional Subscriptions,UKSA - UKSA,"Personal Expense, Name Withheld",429529,253.72,,,EMPLOYEE
"Department for Business, Innovation and Skills",UK Space Agency,17/02/2022,R & D Other Professional Services,UK Space Agency - UK Space Agency,Northern Space and Security Ltd,429531,47326.30,,,VENDOR
"Department for Business, Innovation and Skills",UK Space Agency,22/02/2022,R & D Media and Design Services,UK Space Agency - UK Space Agency,Numerica Corporation,429564,21225.32,,,VENDOR
"Department for Business, Innovation and Skills",UK Space Agency,21/02/2022,R & D Current Grants to Private Sector - NPISH,UK Space Agency - UK Space Agency,eOsphere Ltd,429566,0.41,,,GRANT
"Department for Business, Innovation and Skills",UK Space Agency,21/02/2022,R & D Current Grants to Private Sector - NPISH,UK Space Agency - UK Space Agency,eOsphere Ltd,429566,0.41,,,GRANT
"Department for Business, Innovation and Skills",UK Space Agency,21/02/2022,R & D Current Grants to Private Sector - NPISH,UK Space Agency - UK Space Agency,eOsphere Ltd,429566,985.25,,,GRANT
"Department for Business, Innovation and Skills",UK Space Agency,21/02/2022,R & D Current Grants to Private Sector - NPISH,UK Space Agency - UK Space Agency,eOsphere Ltd,429566,3011.99,,,GRANT
"Department for Business, Innovation and Skills",UK Space Agency,21/02/2022,R & D Current Grants to Private Sector - NPISH,UK Space Agency - UK Space Agency,eOsphere Ltd,429566,28477.49,,,GRANT
"Department for Business, Innovation and Skills",UK Space Agency,21/02/2022,R & D Current Grants to Private Sector - NPISH,UK Space Agency - UK Space Agency,eOsphere Ltd,429566,33879.32,,,GRANT
"Department for Business, Innovation and Skills",UK Space Agency,21/02/2022,R & D Current Grants to Private Sector - NPISH,UK Space Agency - UK Space Agency,eOsphere Ltd,429566,60353.77,,,GRANT
"Department for Business, Innovation and Skills",UK Space Agency,17/02/2022,R & D Legal Costs,UKSA - UKSA,Government Legal Department,429592,372.60,,,VENDOR
"Department for Business, Innovation and Skills",UK Space Agency,17/02/2022,R & D Current Grants to Private Sector - NPISH,UKSA - UKSA,Mangorolla CIC,429593,7500.00,,,VENDOR
"Department for Business, Innovation and Skills",UK Space Agency,17/02/2022,R & D Legal Costs,UKSA - UKSA,Government Legal Department,429594,527.00,,,VENDOR
"Department for Business, Innovation and Skills",UK Space Agency,22/02/2022,R & D Contractors,UKSA - UKSA,Robertson Bell Ltd,429611,1551.34,,,VENDOR
"Department for Business, Innovation and Skills",UK Space Agency,17/02/2022,R & D Contractors,UKSA - UKSA,Robertson Bell Ltd,429612,1306.37,,,VENDOR
"Department for Business, Innovation and Skills",UK Space Agency,17/02/2022,R & D Rail Travel UK,UK Space Agency - UK Space Agency,"Personal Expense, Name Withheld",429639,143.40,,,EMPLOYEE
"Department for Business, Innovation and Skills",UK Space Agency,18/02/2022,R & D Other Travel,UK Space Agency - UK Space Agency,"Personal Expense, Name Withheld",429640,50.00,,,EMPLOYEE
"Department for Business, Innovation and Skills",UK Space Agency,18/02/2022,R & D Other Travel,UK Space Agency - UK Space Agency,"Personal Expense, Name Withheld",429640,105.99,,,EMPLOYEE
"Department for Business, Innovation and Skills",UK Space Agency,17/02/2022,R & D Other Travel,UKSA - UKSA,"Personal Expense, Name Withheld",429641,250.00,,,EMPLOYEE
"Department for Business, Innovation and Skills",UK Space Agency,17/02/2022,R & D External Training,UKSA - UKSA,ILX Group Plc,429674,1870.00,,,VENDOR
"Department for Business, Innovation and Skills",UK Space Agency,17/02/2022,R & D Current Grants to Private Sector - NPISH,UK Space Agency - UK Space Agency,Craft Prospect Ltd,429676,68296.00,,,GRANT
"Department for Business, Innovation and Skills",UK Space Agency,18/02/2022,R & D Other Professional Services,UK Space Agency - UK Space Agency,Bryce Space and Technology Ltd,429798,40363.20,,,GRANT
"Department for Business, Innovation and Skills",UK Space Agency,18/02/2022,R & D Other Professional Services,UK Space Agency - UK Space Agency,Aerospace Corporation UK Ltd,429837,7891.81,,,VENDOR
"Department for Business, Innovation and Skills",UK Space Agency,18/02/2022,R & D Other Professional Services,UK Space Agency - UK Space Agency,Aerospace Corporation UK Ltd,429838,12098.95,,,VENDOR
"Department for Business, Innovation and Skills",UK Space Agency,18/02/2022,Capital Grants To Private Sector - Persons & NPISH,UK Space Agency - UK Space Agency,Reaction Engines Ltd,429842,150000.00,,,GRANT
"Department for Business, Innovation and Skills",UK Space Agency,18/02/2022,R & D Other Travel,UKSA - UKSA,"Personal Expense, Name Withheld",429859,235.90,,,EMPLOYEE
"Department for Business, Innovation and Skills",UK Space Agency,18/02/2022,R & D Other Professional Services,UK Space Agency - UK Space Agency,Ministry of Defence,429876,55800.00,,,WGA ONLY
"Department for Business, Innovation and Skills",UK Space Agency,21/02/2022,R & D Current Grants to Private Sector - NPISH,UK Space Agency - UK Space Agency,Seraphim Space Camp Accelerator Ltd,429897,50000.00,,,GRANT
"Department for Business, Innovation and Skills",UK Space Agency,21/02/2022,R & D Other Professional Services,UKSA - UKSA,GOVERNMENT ACTUARYS DEPARTMENT,429930,9519.84,,,WGA ONLY
"Department for Business, Innovation and Skills",UK Space Agency,21/02/2022,R & D Other Travel,UK Space Agency - UK Space Agency,"Personal Expense, Name Withheld",429954,4.80,,,EMPLOYEE
"Department for Business, Innovation and Skills",UK Space Agency,21/02/2022,R & D Other Travel,UK Space Agency - UK Space Agency,"Personal Expense, Name Withheld",429954,5.00,,,EMPLOYEE
"Department for Business, Innovation and Skills",UK Space Agency,21/02/2022,R & D Other Travel,UK Space Agency - UK Space Agency,"Personal Expense, Name Withheld",429954,17.00,,,EMPLOYEE
"Department for Business, Innovation and Skills",UK Space Agency,21/02/2022,R & D Other Professional Services,UKSA - UKSA,Cabinet Office,429999,12.75,,,WGA ONLY
"Department for Business, Innovation and Skills",UK Space Agency,21/02/2022,R & D Other Professional Services,UKSA - UKSA,Cabinet Office,429999,69.00,,,WGA ONLY
"Department for Business, Innovation and Skills",UK Space Agency,21/02/2022,R & D Other Professional Services,UK Space Agency - UK Space Agency,Bryce Space and Technology Ltd,430021,78160.32,,,GRANT
"Department for Business, Innovation and Skills",UK Space Agency,24/02/2022,R & D Current Grants to Private Sector - NPISH,UK Space Agency - UK Space Agency,Craft Prospect Ltd,430029,281288.00,,,GRANT
"Department for Business, Innovation and Skills",UK Space Agency,21/02/2022,R & D Current Grants to Private Sector - NPISH,UK Space Agency - UK Space Agency,Agricompas Ltd,430031,63482.38,,,GRANT
"Department for Business, Innovation and Skills",UK Space Agency,23/02/2022,R & D Other Professional Services,UK Space Agency - UK Space Agency,UKRI - Natural Environment Research Council,430062,5797.70,,,WGA ONLY
"Department for Business, Innovation and Skills",UK Space Agency,22/02/2022,R & D Current Grants to Private Sector - NPISH,UK Space Agency - UK Space Agency,United Nations Institute for Training and Research (UNITAR),430087,48718.00,,,GRANT
"Department for Business, Innovation and Skills",UK Space Agency,22/02/2022,R & D Contractors,UKSA - UKSA,Alexander Mann Solutions Ltd,430119,5545.50,,,VENDOR
"Department for Business, Innovation and Skills",UK Space Agency,22/02/2022,R & D Contractors,UK Space Agency - UK Space Agency,Alexander Mann Solutions Ltd,430125,2835.24,,,VENDOR
"Department for Business, Innovation and Skills",UK Space Agency,28/02/2022,R & D Contractors,UKSA - UKSA,Alexander Mann Solutions Ltd,430130,4323.62,,,VENDOR
"Department for Business, Innovation and Skills",UK Space Agency,25/02/2022,R & D Contractors,UKSA - UKSA,Alexander Mann Solutions Ltd,430134,27.60,,,VENDOR
"Department for Business, Innovation and Skills",UK Space Agency,25/02/2022,R & D Contractors,UKSA - UKSA,Alexander Mann Solutions Ltd,430134,1318.18,,,VENDOR
"Department for Business, Innovation and Skills",UK Space Agency,22/02/2022,R & D Contractors,UK Space Agency - UK Space Agency,Alexander Mann Solutions Ltd,430137,5952.96,,,VENDOR
"Department for Business, Innovation and Skills",UK Space Agency,22/02/2022,R & D Contractors,UKSA - UKSA,Alexander Mann Solutions Ltd,430139,5974.56,,,VENDOR
"Department for Business, Innovation and Skills",UK Space Agency,22/02/2022,R & D Contractors,UK Space Agency - UK Space Agency,Alexander Mann Solutions Ltd,430142,4927.44,,,VENDOR
"Department for Business, Innovation and Skills",UK Space Agency,25/02/2022,R & D Contractors,UKSA - UKSA,Alexander Mann Solutions Ltd,430144,6614.94,,,VENDOR
"Department for Business, Innovation and Skills",UK Space Agency,22/02/2022,R & D Contractors,UK Space Agency - UK Space Agency,Alexander Mann Solutions Ltd,430147,2205.18,,,VENDOR
"Department for Business, Innovation and Skills",UK Space Agency,23/02/2022,R & D Contractors,UK Space Agency - UK Space Agency,Alexander Mann Solutions Ltd,430148,3048.90,,,VENDOR
"Department for Business, Innovation and Skills",UK Space Agency,22/02/2022,R & D Contractors,UK Space Agency - UK Space Agency,Alexander Mann Solutions Ltd,430149,3314.10,,,VENDOR
"Department for Business, Innovation and Skills",UK Space Agency,22/02/2022,R & D Contractors,UK Space Agency - UK Space Agency,Alexander Mann Solutions Ltd,430152,2985.66,,,VENDOR
"Department for Business, Innovation and Skills",UK Space Agency,23/02/2022,R & D Other Professional Services,UKSA - UKSA,Cabinet Office,430239,5570.00,,,WGA ONLY
"Department for Business, Innovation and Skills",UK Space Agency,22/02/2022,R & D Rentals Under Non-PFI Operating Leases - Buildings,UKSA - UKSA,Government Property Agency,430241,4482.82,,,VENDOR
"Department for Business, Innovation and Skills",UK Space Agency,22/02/2022,R & D Rentals Under Non-PFI Operating Leases - Buildings,UKSA - UKSA,Government Property Agency,430241,19550.05,,,VENDOR
"Department for Business, Innovation and Skills",UK Space Agency,22/02/2022,R & D Other Travel,UK Space Agency - UK Space Agency,"Personal Expense, Name Withheld",430287,5.58,,,EMPLOYEE
"Department for Business, Innovation and Skills",UK Space Agency,22/02/2022,R & D Other Travel,UK Space Agency - UK Space Agency,"Personal Expense, Name Withheld",430287,50.00,,,EMPLOYEE
"Department for Business, Innovation and Skills",UK Space Agency,22/02/2022,R & D Other Travel,UK Space Agency - UK Space Agency,"Personal Expense, Name Withheld",430287,61.99,,,EMPLOYEE
"Department for Business, Innovation and Skills",UK Space Agency,22/02/2022,R & D Taxi Services UK,UK Space Agency - UK Space Agency,"Personal Expense, Name Withheld",430288,20.00,,,EMPLOYEE
"Department for Business, Innovation and Skills",UK Space Agency,22/02/2022,R & D Other Travel,UK Space Agency - UK Space Agency,"Personal Expense, Name Withheld",430289,165.60,,,EMPLOYEE
"Department for Business, Innovation and Skills",UK Space Agency,23/02/2022,Capital Grants To Private Sector - Persons & NPISH,UK Space Agency - UK Space Agency,TwinParadox Ltd,430351,7159.95,,,GRANT
"Department for Business, Innovation and Skills",UK Space Agency,23/02/2022,R & D External Training,UKSA - UKSA,THE KNOWLEDGE ACADEMY LTD,430374,1495.00,,,VENDOR
"Department for Business, Innovation and Skills",UK Space Agency,23/02/2022,R & D External Training,UKSA - UKSA,THE KNOWLEDGE ACADEMY LTD,430379,1495.00,,,VENDOR
"Department for Business, Innovation and Skills",UK Space Agency,23/02/2022,R & D Mileage Allowance UK,UK Space Agency - UK Space Agency,"Personal Expense, Name Withheld",430392,2.25,,,EMPLOYEE
"Department for Business, Innovation and Skills",UK Space Agency,23/02/2022,R & D Other Travel,UK Space Agency - UK Space Agency,"Personal Expense, Name Withheld",430392,9.10,,,EMPLOYEE
"Department for Business, Innovation and Skills",UK Space Agency,23/02/2022,R & D Subsistence UK,UK Space Agency - UK Space Agency,"Personal Expense, Name Withheld",430392,15.00,,,EMPLOYEE
"Department for Business, Innovation and Skills",UK Space Agency,23/02/2022,R & D Subsistence UK,UK Space Agency - UK Space Agency,"Personal Expense, Name Withheld",430392,15.00,,,EMPLOYEE
"Department for Business, Innovation and Skills",UK Space Agency,23/02/2022,R & D Subsistence UK,UK Space Agency - UK Space Agency,"Personal Expense, Name Withheld",430392,15.00,,,EMPLOYEE
"Department for Business, Innovation and Skills",UK Space Agency,23/02/2022,R & D Subsistence UK,UK Space Agency - UK Space Agency,"Personal Expense, Name Withheld",430392,15.00,,,EMPLOYEE
"Department for Business, Innovation and Skills",UK Space Agency,23/02/2022,R & D Subsistence UK,UK Space Agency - UK Space Agency,"Personal Expense, Name Withheld",430392,15.00,,,EMPLOYEE
"Department for Business, Innovation and Skills",UK Space Agency,23/02/2022,R & D Subsistence UK,UK Space Agency - UK Space Agency,"Personal Expense, Name Withheld",430392,15.00,,,EMPLOYEE
"Department for Business, Innovation and Skills",UK Space Agency,23/02/2022,R & D Other Travel,UK Space Agency - UK Space Agency,"Personal Expense, Name Withheld",430392,26.00,,,EMPLOYEE
"Department for Business, Innovation and Skills",UK Space Agency,23/02/2022,R & D Mileage Allowance UK,UK Space Agency - UK Space Agency,"Personal Expense, Name Withheld",430463,4.14,,,EMPLOYEE
"Department for Business, Innovation and Skills",UK Space Agency,23/02/2022,R & D Mileage Allowance UK,UK Space Agency - UK Space Agency,"Personal Expense, Name Withheld",430463,35.46,,,EMPLOYEE
"Department for Business, Innovation and Skills",UK Space Agency,23/02/2022,R & D Other Travel,UK Space Agency - UK Space Agency,"Personal Expense, Name Withheld",430464,23.44,,,EMPLOYEE
"Department for Business, Innovation and Skills",UK Space Agency,23/02/2022,R & D Subsistence UK,UK Space Agency - UK Space Agency,"Personal Expense, Name Withheld",430465,8.65,,,EMPLOYEE
"Department for Business, Innovation and Skills",UK Space Agency,23/02/2022,R & D Mileage Allowance UK,UK Space Agency - UK Space Agency,"Personal Expense, Name Withheld",430465,134.10,,,EMPLOYEE
"Department for Business, Innovation and Skills",UK Space Agency,23/02/2022,R & D Subsistence UK,UK Space Agency - UK Space Agency,"Personal Expense, Name Withheld",430466,8.00,,,EMPLOYEE
"Department for Business, Innovation and Skills",UK Space Agency,24/02/2022,R & D Other Professional Services,UK Space Agency - UK Space Agency,Caribou Digital (UK) Ltd,430515,44278.46,,,VENDOR
"Department for Business, Innovation and Skills",UK Space Agency,24/02/2022,R & D Other Professional Services,UK Space Agency - UK Space Agency,2020 Delivery Ltd T/A The PSC,430563,114818.40,,,VENDOR
"Department for Business, Innovation and Skills",UK Space Agency,24/02/2022,R & D Other Professional Services,UK Space Agency - UK Space Agency,2020 Delivery Ltd T/A The PSC,430571,29998.80,,,VENDOR
"Department for Business, Innovation and Skills",UK Space Agency,24/02/2022,R & D Current Grants to Private Sector - NPISH,UK Space Agency - UK Space Agency,University Of Cambridge,430573,19665.48,,,VENDOR
"Department for Business, Innovation and Skills",UK Space Agency,24/02/2022,R & D Current Grants to Private Sector - NPISH,UK Space Agency - UK Space Agency,University Of Cambridge,430581,6573.44,,,VENDOR
"Department for Business, Innovation and Skills",UK Space Agency,24/02/2022,R & D Current Grants to Private Sector - NPISH,UK Space Agency - UK Space Agency,ClearSpace Today Ltd,430601,50618.00,,,VENDOR
"Department for Business, Innovation and Skills",UK Space Agency,25/02/2022,R & D Other Staff Welfare Costs,UKSA - UKSA,People Asset Management Ltd,430608,232.30,,,VENDOR
"Department for Business, Innovation and Skills",UK Space Agency,25/02/2022,R & D Contractors,UK Space Agency - UK Space Agency,Robertson Bell Ltd,430614,1226.33,,,VENDOR
"Department for Business, Innovation and Skills",UK Space Agency,24/02/2022,Capital Grants To Private Sector - Persons & NPISH,UK Space Agency - UK Space Agency,THE OPEN UNIVERSITY,430615,143137.13,,,VENDOR
"Department for Business, Innovation and Skills",UK Space Agency,24/02/2022,R & D Contractors,UKSA - UKSA,Robertson Bell Ltd,430616,775.67,,,VENDOR
"Department for Business, Innovation and Skills",UK Space Agency,28/02/2022,R & D External Training,UKSA - UKSA,THE KNOWLEDGE ACADEMY LTD,430618,1495.00,,,VENDOR
"Department for Business, Innovation and Skills",UK Space Agency,24/02/2022,R & D Other Travel,UK Space Agency - UK Space Agency,"Personal Expense, Name Withheld",430657,294.57,,,EMPLOYEE
"Department for Business, Innovation and Skills",UK Space Agency,24/02/2022,R & D Other Travel,UK Space Agency - UK Space Agency,"Personal Expense, Name Withheld",430658,26.31,,,EMPLOYEE
"Department for Business, Innovation and Skills",UK Space Agency,24/02/2022,R & D Other Travel,UK Space Agency - UK Space Agency,"Personal Expense, Name Withheld",430658,194.15,,,EMPLOYEE
"Department for Business, Innovation and Skills",UK Space Agency,24/02/2022,R & D Mileage Allowance UK,UKSA - UKSA,"Personal Expense, Name Withheld",430659,34.20,,,EMPLOYEE
"Department for Business, Innovation and Skills",UK Space Agency,25/02/2022,R & D Other Professional Services,UKSA - UKSA,DSTL (Defence Science and Technology Laboratory),430751,110941.84,,,VENDOR
"Department for Business, Innovation and Skills",UK Space Agency,25/02/2022,R & D Other Professional Services,UKSA - UKSA,RADA IN BUSINESS LTD,430762,420.00,,,VENDOR
"Department for Business, Innovation and Skills",UK Space Agency,25/02/2022,R & D Current Grants to Private Sector - NPISH,UK Space Agency - UK Space Agency,Braided Communications Ltd,430766,10888.76,,,VENDOR
"Department for Business, Innovation and Skills",UK Space Agency,25/02/2022,R & D Other Travel,UK Space Agency - UK Space Agency,"Personal Expense, Name Withheld",430827,34.20,,,EMPLOYEE
"Department for Business, Innovation and Skills",UK Space Agency,25/02/2022,R & D Other Travel,UK Space Agency - UK Space Agency,"Personal Expense, Name Withheld",430828,2703.92,,,EMPLOYEE
"Department for Business, Innovation and Skills",UK Space Agency,28/02/2022,R & D Other Travel,UK Space Agency - UK Space Agency,"Personal Expense, Name Withheld",430896,5.00,,,EMPLOYEE
"Department for Business, Innovation and Skills",UK Space Agency,28/02/2022,R & D Rail Travel Overseas,UKSA - UKSA,"Personal Expense, Name Withheld",430897,6.53,,,EMPLOYEE
"Department for Business, Innovation and Skills",UK Space Agency,28/02/2022,R & D Rail Travel Overseas,UKSA - UKSA,"Personal Expense, Name Withheld",430897,7.63,,,EMPLOYEE
"Department for Business, Innovation and Skills",UK Space Agency,28/02/2022,R & D Subsistence Overseas,UKSA - UKSA,"Personal Expense, Name Withheld",430897,7.96,,,EMPLOYEE
"Department for Business, Innovation and Skills",UK Space Agency,28/02/2022,R & D Subsistence Overseas,UKSA - UKSA,"Personal Expense, Name Withheld",430897,20.94,,,EMPLOYEE
"Department for Business, Innovation and Skills",UK Space Agency,28/02/2022,R & D Subsistence Overseas,UKSA - UKSA,"Personal Expense, Name Withheld",430897,25.10,,,EMPLOYEE
"Department for Business, Innovation and Skills",UK Space Agency,28/02/2022,R & D Subsistence Overseas,UKSA - UKSA,"Personal Expense, Name Withheld",430897,32.68,,,EMPLOYEE
"Department for Business, Innovation and Skills",UK Space Agency,28/02/2022,R & D Other Travel,UKSA - UKSA,"Personal Expense, Name Withheld",430898,3.98,,,EMPLOYEE
"Department for Business, Innovation and Skills",UK Space Agency,28/02/2022,R & D Other Travel,UKSA - UKSA,"Personal Expense, Name Withheld",430898,4.00,,,EMPLOYEE
"Department for Business, Innovation and Skills",UK Space Agency,28/02/2022,R & D Rail Travel UK,UKSA - UKSA,"Personal Expense, Name Withheld",430898,17.20,,,EMPLOYEE
"Department for Business, Innovation and Skills",UK Space Agency,28/02/2022,R & D Other Travel,UKSA - UKSA,"Personal Expense, Name Withheld",430898,24.00,,,EMPLOYEE
"Department for Business, Innovation and Skills",UK Space Agency,28/02/2022,R & D Taxi Services UK,UKSA - UKSA,"Personal Expense, Name Withheld",430898,75.00,,,EMPLOYEE
"Department for Business, Innovation and Skills",UK Space Agency,28/02/2022,R & D Subsistence Overseas,UK Space Agency - UK Space Agency,"Personal Expense, Name Withheld",430899,1463.33,,,EMPLOYEE
"Department for Business, Innovation and Skills",UK Space Agency,28/02/2022,R & D Other Travel,UK Space Agency - UK Space Agency,"Personal Expense, Name Withheld",430900,34.20,,,EMPLOYEE
"Department for Business, Innovation and Skills",UK Space Agency,28/02/2022,R & D Other Professional Services,UK Space Agency - UK Space Agency,RHEATECH LTD,430940,71016.84,,,GRANT
"Department for Business, Innovation and Skills",UK Space Agency,28/02/2022,R & D Current Grants to Private Sector - NPISH,UK Space Agency - UK Space Agency,North Hertfordshire College,430987,1000.00,,,VENDOR
"Department for Business, Innovation and Skills",UK Space Agency,28/02/2022,CL - Payroll Suspense,Corporate Payments,LEGAL AND GENERAL ASSURANCE SOCIETY LTD,431150,1000.00,,,VENDOR
"Department for Business, Innovation and Skills",UK Space Agency,28/02/2022,CL - Payroll Suspense,Corporate Payments,LEGAL AND GENERAL ASSURANCE SOCIETY LTD,431152,2737.93,,,VENDOR
